fUST/lending_fUST_20240924
["ID","MTS","AMOUNT","RATE_DAILY","PERIOD"]
[339019603,1727130681759,-509.90572779,0.00033835,30]
[339019604,1727130681769,-500.0,0.00033835,30]
[339019605,1727130681779,-318.65,0.00033835,30]
[339019606,1727130681788,-729.6,0.00033835,30]
[339019607,1727130681797,-500.0,0.00033835,30]
[339019608,1727130681807,-500.0,0.00033835,30]
[339019609,1727130681816,-500.0,0.00033835,30]
[339019610,1727130681828,-527.26,0.00033835,30]
[339019611,1727130681838,-1276.76,0.00033835,30]
[339019612,1727130681847,-500.0,0.00033835,30]
[339019613,1727130681857,-500.0,0.00033835,30]
[339019614,1727130681867,-1463.58,0.00033835,30]
[339019615,1727130681876,-500.0,0.00033835,30]
[339019616,1727130681885,-500.0,0.00033835,30]
[339019617,1727130681894,-1844.92,0.00033835,30]
[339019618,1727130681904,-612.36,0.00033835,30]
[339019619,1727130681914,-500.0,0.00033835,30]
[339019620,1727130681923,-500.0,0.00033835,30]
[339019621,1727130681933,-500.0,0.00033835,7]
[339019622,1727130681943,-500.0,0.00033835,30]
[339019623,1727130681952,-500.0,0.00033835,30]
[339019624,1727130681961,-500.0,0.00033835,30]
[339019625,1727130681970,-500.0,0.00033835,30]
[339019626,1727130681980,-500.0,0.00033835,30]
[339019627,1727130681989,-500.0,0.00033835,30]
[339019628,1727130681999,-500.0,0.00033835,30]
[339019629,1727130682008,-1266.01,0.00033835,30]
[339019630,1727130682017,-500.0,0.00033835,30]
[339019631,1727130682027,-500.0,0.00033835,30]
[339019632,1727130682036,-1200.54,0.00033835,30]
[339019633,1727130682046,-500.0,0.00033835,30]
[339019634,1727130682056,-501.9,0.00033835,30]
[339019635,1727130682065,-500.0,0.00033835,30]
[339019636,1727130682074,-500.0,0.00033835,30]
[339019637,1727130682084,-1081.62,0.00033835,30]
[339019638,1727130682093,-500.0,0.00033835,30]
[339019639,1727130682104,-500.0,0.00033835,30]
[339019640,1727130682115,-500.0,0.00033835,30]
[339019641,1727130682125,-500.0,0.00033835,30]
[339019642,1727130682134,-1820.79,0.00033835,7]
[339019643,1727130682143,-694.3,0.00033835,30]
[339019644,1727130682152,-156.19208194,0.00033835,30]
[339019645,1727130682162,-500.0,0.00033835,30]
[339019646,1727130682171,-1532.58,0.00033835,30]
[339019647,1727130682180,-1035.06,0.00033835,30]
[339019648,1727130682190,-40342.48,0.00033835,18]
[339019649,1727130682199,-500.0,0.00033835,30]
[339019650,1727130682208,-736.16,0.00033835,30]
[339019651,1727130682217,-500.0,0.00033835,30]
[339019652,1727130682226,-687.6,0.0003394,7]
[339019653,1727130682236,-719.75,0.00033972,30]
[339019654,1727130682245,-552.1178251,0.00033972,30]
[339019655,1727130682254,-969.66,0.00033972,30]
[339019656,1727130682263,-711.06,0.00033972,30]
[339019657,1727130682272,-514.47,0.00033972,30]
[339019658,1727130682289,-513.89,0.00033972,30]
[339019659,1727130682299,-500.0,0.00033972,2]
[339019660,1727130682308,-584.13,0.00033972,30]
[339019661,1727130682317,-984.17,0.00033972,30]
[339019662,1727130682326,-683.52,0.00033972,30]
[339019663,1727130682336,-500.0,0.00033972,30]
[339019664,1727130682345,-281.11657145,0.00033972,30]
[339019665,1727130682354,-610.08,0.00033972,30]
[339019666,1727130682363,-1045.6,0.00033972,7]
[339019667,1727130682373,-859.64,0.00033972,30]
[339019668,1727130682382,-1071.88,0.00033972,30]
[339019669,1727130682391,-607.11,0.00033972,30]
[339019670,1727130682400,-500.0,0.00033972,30]
[339019671,1727130682410,-500.0,0.00033972,30]
[339019672,1727130682419,-156.82691428,0.00033972,30]
[339019673,1727130682429,-500.0,0.00033972,30]
[339019674,1727130682438,-500.0,0.00033972,30]
[339019675,1727130682447,-678.42,0.00033972,30]
[339019676,1727130682457,-520.8,0.00033972,30]
[339019677,1727130682466,-500.0,0.00033972,30]
[339019678,1727130682475,-581.01,0.00033972,30]
[339019679,1727130682484,-172.00298604,0.00033972,30]
[339019680,1727130682494,-624.97,0.00033972,30]
[339019681,1727130682503,-500.0,0.00033972,30]
[339019682,1727130682512,-746.07,0.00033972,30]
[339019683,1727130682521,-606.75,0.00033972,30]
[339019684,1727130682533,-500.0,0.00033972,30]
[339019685,1727130682543,-500.0,0.00033972,30]
[339019686,1727130682552,-500.0,0.00033972,30]
[339019687,1727130682561,-500.0,0.00033972,30]
[339019688,1727130682570,-500.0,0.00033972,30]
[339019689,1727130682579,-500.0,0.00033972,30]
[339019690,1727130682589,-572.02,0.00033972,30]
[339019691,1727130682598,-500.0,0.00033972,30]
[339019692,1727130682607,-527.38,0.00033972,30]
[339019693,1727130682615,-500.0,0.00033972,30]
[339019694,1727130682625,-500.0,0.00033972,30]
[339019695,1727130682633,-2283.61,0.00033972,30]
[339019696,1727130682642,-500.0,0.00033972,30]
[339019697,1727130682651,-395.39897903,0.00033972,30]
[339019698,1727130682660,-500.0,0.00033972,30]
[339019699,1727130682669,-500.0,0.00033972,30]
[339019700,1727130682678,-729.07,0.00033972,25]
[339019701,1727130682687,-500.0,0.00033972,30]
[339019702,1727130682696,-500.0,0.00033972,30]
[339019703,1727130682705,-500.0,0.00033972,30]
[339019704,1727130682714,-500.0,0.00033972,30]
[339019705,1727130682723,-500.0,0.00033972,30]
[339019706,1727130682732,-500.0,0.00033972,30]
[339019707,1727130682740,-500.0,0.00033972,30]
[339019708,1727130682750,-593.99558049,0.00033972,30]
[339019709,1727130682759,-500.0,0.00033972,30]
[339019710,1727130682768,-500.0,0.00033972,30]
[339019711,1727130682781,-303.74049159,0.00033972,30]
[339019712,1727130682791,-500.0,0.00033972,30]
[339019713,1727130682800,-500.0,0.00033972,30]
[339019714,1727130682809,-500.0,0.00033972,30]
[339019715,1727130682819,-500.0,0.00033972,30]
[339019716,1727130682832,-639.96,0.00033972,30]
[339019717,1727130682841,-3024.97,0.00033972,30]
[339019718,1727130682850,-152.58491657,0.00033972,30]
[339019719,1727130682859,-500.0,0.00033972,30]
[339019720,1727130682868,-1122.08,0.00033972,30]
[339019721,1727130682877,-500.0,0.00033972,30]
[339019722,1727130682887,-500.0,0.00033972,30]
[339019723,1727130682897,-500.0,0.00033972,30]
[339019724,1727130682907,-579.37028563,0.00033972,30]
[339019725,1727130682917,-500.0,0.00033972,30]
[339019726,1727130682926,-500.0,0.00033972,2]
[339019727,1727130682935,-655.57,0.00033972,30]
[339019728,1727130682944,-500.0,0.00033972,30]
[339019729,1727130682954,-500.0,0.00033972,30]
[339019730,1727130682962,-500.0,0.00033972,30]
[339019731,1727130682971,-500.0,0.00033972,30]
[339019732,1727130682980,-497.97000204,0.00033972,30]
[339019733,1727130682989,-500.0,0.00033972,30]
[339019734,1727130682998,-500.0,0.00033972,30]
[339019735,1727130683007,-532.96,0.00033972,30]
[339019736,1727130683017,-604.35222442,0.00033972,30]
[339019737,1727130683027,-500.0,0.00033972,30]
[339019738,1727130683036,-337.17950465,0.00033972,30]
[339019739,1727130683045,-500.0,0.00033972,30]
[339019740,1727130683055,-500.0,0.00033972,30]
[339019741,1727130683064,-625.74,0.00033972,30]
[339019742,1727130683073,-500.0,0.00033972,30]
[339019743,1727130683082,-500.0,0.00033972,30]
[339019744,1727130683091,-783.45,0.00033972,30]
[339019745,1727130683101,-500.0,0.00033972,30]
[339019746,1727130683110,-1230.74,0.00033972,30]
[339019747,1727130683120,-240.52821933,0.00033972,30]
[339019748,1727130683129,-1846.29,0.00033972,30]
[339019749,1727130683238,-500.0,0.00033972,30]
[339019750,1727130683248,-1397.17,0.00033972,2]
[339019751,1727130683257,-500.0,0.00033972,30]
[339019752,1727130683267,-500.0,0.00033972,30]
[339019753,1727130683277,-684.0,0.00033972,30]
[339019754,1727130683286,-604.33,0.00033972,30]
[339019755,1727130683296,-500.0,0.00033972,30]
[339019756,1727130683305,-500.0,0.00033972,30]
[339019757,1727130683315,-500.0,0.00033972,30]
[339019758,1727130683324,-500.0,0.00033972,30]
[339019759,1727130683333,-1000.0,0.00033972,120]
[339019760,1727130683342,-825.29,0.00033972,30]
[339019761,1727130683352,-624.72,0.00033972,30]
[339019762,1727130683361,-500.0,0.00033972,30]
[339019763,1727130683371,-500.0,0.00033972,30]
[339019764,1727130683380,-248.98,0.00033972,30]
[339019765,1727130683389,-500.0,0.00033972,30]
[339019766,1727130683398,-514.15,0.00033972,30]
[339019767,1727130683407,-500.0,0.00033972,30]
[339019768,1727130683416,-500.0,0.00033972,30]
[339019769,1727130683426,-500.0,0.00033972,30]
[339019770,1727130683435,-500.0,0.00033972,30]
[339019771,1727130683445,-500.0,0.00033972,30]
[339019772,1727130683454,-500.0,0.00033972,30]
[339019773,1727130683463,-542.44552262,0.00033972,30]
[339019774,1727130683472,-500.0,0.00033972,30]
[339019775,1727130683481,-741.53,0.00033972,30]
[339019776,1727130683491,-169.20417275,0.00033972,30]
[339019777,1727130683500,-500.0,0.00033972,30]
[339019778,1727130683510,-500.0,0.00033972,30]
[339019779,1727130683519,-500.0,0.00033972,120]
[339019780,1727130683528,-500.0,0.00033972,30]
[339019781,1727130683538,-500.0,0.00033972,30]
[339019782,1727130683547,-1260.11,0.00033972,30]
[339019783,1727130683556,-500.0,0.00033972,30]
[339019784,1727130683566,-500.0,0.00033972,30]
[339019785,1727130683575,-545.43,0.00033972,30]
[339019786,1727130683584,-500.0,0.00033972,30]
[339019787,1727130683593,-500.0,0.00033972,30]
[339019788,1727130683602,-536.2,0.00033972,30]
[339019789,1727130683611,-500.0,0.00033972,30]
[339019790,1727130683620,-1484.78,0.00033972,30]
[339019791,1727130683630,-500.0,0.00033972,30]
[339019792,1727130683639,-4278.99,0.00033972,21]
[339019793,1727130683648,-500.0,0.00033972,30]
[339019794,1727130683657,-500.0,0.00033972,30]
[339019795,1727130683667,-500.0,0.00033972,30]
[339019796,1727130683676,-500.0,0.00033972,30]
[339019797,1727130683685,-500.0,0.00033972,30]
[339019798,1727130683694,-500.0,0.00033972,30]
[339019799,1727130683704,-729.6,0.00033972,30]
[339019800,1727130683713,-500.0,0.00033972,30]
[339019801,1727130683722,-500.0,0.00033972,30]
[339019802,1727130683732,-500.0,0.00033972,30]
[339019803,1727130683741,-527.26,0.00033972,30]
[339019804,1727130683750,-1276.76,0.00033972,30]
[339019805,1727130683759,-586.30371283,0.00033972,30]
[339019806,1727130683768,-500.0,0.00033972,30]
[339019807,1727130683778,-1463.58,0.00033972,30]
[339019808,1727130683787,-500.0,0.00033972,30]
[339019809,1727130683797,-500.0,0.00033972,30]
[339019810,1727130683806,-1844.92,0.00033972,30]
[339019811,1727130683816,-612.36,0.00033972,30]
[339019812,1727130683831,-500.0,0.00033972,30]
[339019813,1727130683841,-500.0,0.00033972,30]
[339019814,1727130683850,-500.0,0.00033972,7]
[339019815,1727130683860,-500.0,0.00033972,30]
[339019816,1727130683870,-500.0,0.00033972,30]
[339019817,1727130683879,-500.0,0.00033972,30]
[339019818,1727130683888,-500.0,0.00033972,30]
[339019819,1727130683897,-500.0,0.00033972,30]
[339019820,1727130683907,-500.0,0.00033972,30]
[339019821,1727130683916,-500.0,0.00033972,30]
[339019822,1727130683926,-1266.01,0.00033972,30]
[339019823,1727130683935,-500.0,0.00033972,30]
[339019824,1727130683944,-500.0,0.00033972,30]
[339019825,1727130683954,-1200.54,0.00033972,30]
[339019826,1727130683963,-500.0,0.00033972,30]
[339019827,1727130683973,-501.9,0.00033972,30]
[339019828,1727130683983,-500.0,0.00033972,30]
[339019829,1727130683992,-500.0,0.00033972,30]
[339019830,1727130684001,-1081.62,0.00033972,30]
[339019831,1727130684011,-500.0,0.00033972,30]
[339019832,1727130684020,-500.0,0.00033972,30]
[339019833,1727130684031,-500.0,0.00033972,30]
[339019834,1727130684040,-500.0,0.00033972,30]
[339019835,1727130684048,-1820.79,0.00033972,7]
[339019836,1727130684058,-694.3,0.00033972,30]
[339019837,1727130684067,-500.0,0.00033972,30]
[339019838,1727130684076,-1532.58,0.00033972,30]
[339019839,1727130684085,-1035.06,0.00033972,30]
[339019840,1727130684094,-40342.48,0.00033972,18]
[339019841,1727130684104,-500.0,0.00033972,30]
[339019842,1727130684115,-736.16,0.00033972,30]
[339019843,1727130684125,-500.0,0.00033972,30]
[339019844,1727130684134,-245.0,0.00034,9]
[339019845,1727130684144,-245.0,0.00034,9]
[339019846,1727130684154,-420.0,0.000341,120]
[339019847,1727130684162,-719.75,0.00034109,30]
[339019848,1727130684171,-969.66,0.00034109,30]
[339019849,1727130684182,-711.06,0.00034109,30]
[339019850,1727130684191,-514.47,0.00034109,30]
[339019851,1727130684200,-513.89,0.00034109,30]
[339019852,1727130684210,-500.0,0.00034109,2]
[339019853,1727130684219,-584.13,0.00034109,30]
[339019854,1727130684228,-984.17,0.00034109,30]
[339019855,1727130684238,-683.52,0.00034109,30]
[339019856,1727130684247,-500.0,0.00034109,30]
[339019857,1727130684256,-610.08,0.00034109,30]
[339019858,1727130684266,-1045.6,0.00034109,7]
[339019859,1727130684275,-859.64,0.00034109,30]
[339019860,1727130684286,-1071.88,0.00034109,30]
[339019861,1727130684296,-607.11,0.00034109,30]
[339019862,1727130684305,-500.0,0.00034109,30]
[339019863,1727130684315,-500.0,0.00034109,30]
[339019864,1727130684325,-500.0,0.00034109,30]
[339019865,1727130684334,-500.0,0.00034109,30]
[339019866,1727130684343,-678.42,0.00034109,30]
[339019867,1727130684352,-520.8,0.00034109,30]
[339019868,1727130684361,-500.0,0.00034109,30]
[339019869,1727130684371,-581.01,0.00034109,30]
[339019870,1727130684380,-624.97,0.00034109,30]
[339019871,1727130684390,-500.0,0.00034109,30]
[339019872,1727130684399,-746.07,0.00034109,30]
[339019873,1727130684409,-606.75,0.00034109,30]
[339019874,1727130684418,-500.0,0.00034109,30]
[339019875,1727130684428,-640.01364296,0.00034109,30]
[339019876,1727130684438,-500.0,0.00034109,30]
[339019877,1727130684447,-500.0,0.00034109,30]
[339019878,1727130684456,-500.0,0.00034109,30]
[339019879,1727130684465,-500.0,0.00034109,30]
[339019880,1727130684475,-572.02,0.00034109,30]
[339019881,1727130684485,-500.0,0.00034109,30]
[339019882,1727130684494,-527.38,0.00034109,30]
[339019883,1727130684503,-500.0,0.00034109,30]
[339019884,1727130684513,-500.0,0.00034109,30]
[339019885,1727130684523,-2283.61,0.00034109,30]
[339019886,1727130684534,-500.0,0.00034109,30]
[339019887,1727130684543,-500.0,0.00034109,30]
[339019888,1727130684553,-311.08475411,0.00034109,30]
[339019889,1727130684562,-729.07,0.00034109,25]
[339019890,1727130684571,-500.0,0.00034109,30]
[339019891,1727130684580,-373.47861477,0.00034109,30]
[339019892,1727130684589,-500.0,0.00034109,30]
[339019893,1727130684598,-500.0,0.00034109,30]
[339019894,1727130684607,-500.0,0.00034109,30]
[339019895,1727130684616,-500.0,0.00034109,30]
[339019896,1727130684625,-500.0,0.00034109,30]
[339019897,1727130684634,-500.0,0.00034109,30]
[339019898,1727130684644,-500.0,0.00034109,30]
[339019899,1727130684654,-500.0,0.00034109,30]
[339019900,1727130684663,-500.0,0.00034109,30]
[339019901,1727130684673,-500.0,0.00034109,30]
[339019902,1727130684682,-500.0,0.00034109,30]
[339019903,1727130684691,-639.96,0.00034109,30]
[339019904,1727130684700,-3024.97,0.00034109,30]
[339019905,1727130684709,-500.0,0.00034109,30]
[339019906,1727130684718,-1122.08,0.00034109,30]
[339019907,1727130684727,-500.0,0.00034109,30]
[339019908,1727130684736,-394.91677177,0.00034109,30]
[339019909,1727130684745,-500.0,0.00034109,30]
[339019910,1727130684754,-500.0,0.00034109,30]
[339019911,1727130684764,-500.0,0.00034109,2]
[339019912,1727130684773,-655.57,0.00034109,30]
[339019913,1727130684784,-500.0,0.00034109,30]
[339019914,1727130684880,-437.82703255,0.00034109,30]
[339019915,1727130684890,-500.0,0.00034109,30]
[339019916,1727130684900,-500.0,0.00034109,30]
[339019917,1727130684910,-500.0,0.00034109,30]
[339019918,1727130684920,-500.0,0.00034109,30]
[339019919,1727130684930,-532.96,0.00034109,30]
[339019920,1727130684940,-500.0,0.00034109,30]
[339019921,1727130684949,-500.0,0.00034109,30]
[339019922,1727130684958,-500.0,0.00034109,30]
[339019923,1727130684967,-625.74,0.00034109,30]
[339019924,1727130684976,-500.0,0.00034109,30]
[339019925,1727130684985,-500.0,0.00034109,30]
[339019926,1727130684995,-783.45,0.00034109,30]
[339019927,1727130685004,-500.0,0.00034109,30]
[339019928,1727130685014,-1230.74,0.00034109,30]
[339019929,1727130685023,-1846.29,0.00034109,30]
[339019930,1727130685034,-500.0,0.00034109,30]
[339019931,1727130685043,-1397.17,0.00034109,2]
[339019932,1727130685052,-500.0,0.00034109,30]
[339019933,1727130685061,-500.0,0.00034109,30]
[339019934,1727130685070,-684.0,0.00034109,30]
[339019935,1727130685079,-604.33,0.00034109,30]
[339019936,1727130685089,-500.0,0.00034109,30]
[339019937,1727130685098,-500.0,0.00034109,30]
[339019938,1727130685107,-500.0,0.00034109,30]
[339019939,1727130685117,-500.0,0.00034109,30]
[339019940,1727130685127,-1000.0,0.00034109,120]
[339019941,1727130685136,-825.29,0.00034109,30]
[339019942,1727130685146,-624.72,0.00034109,30]
[339019943,1727130685155,-500.0,0.00034109,30]
[339019944,1727130685165,-465.51500843,0.00034109,30]
[339019945,1727130685175,-248.98,0.00034109,30]
[339019946,1727130685184,-500.0,0.00034109,30]
[339019947,1727130685193,-514.15,0.00034109,30]
[339019948,1727130685202,-500.0,0.00034109,30]
[339019949,1727130685212,-500.0,0.00034109,30]
[339019950,1727130685222,-500.0,0.00034109,30]
[339019951,1727130685231,-309.49282544,0.00034109,30]
[339019952,1727130685241,-500.0,0.00034109,30]
[339019953,1727130685250,-500.0,0.00034109,30]
[339019954,1727130685259,-648.5092133,0.00034109,30]
[339019955,1727130685268,-741.53,0.00034109,30]
[339019956,1727130685278,-500.0,0.00034109,30]
[339019957,1727130685287,-500.0,0.00034109,30]
[339019958,1727130685296,-500.0,0.00034109,120]
[339019959,1727130685306,-500.0,0.00034109,30]
[339019960,1727130685315,-500.0,0.00034109,30]
[339019961,1727130685326,-1260.11,0.00034109,30]
[339019962,1727130685335,-500.0,0.00034109,30]
[339019963,1727130685344,-500.0,0.00034109,30]
[339019964,1727130685353,-545.43,0.00034109,30]
[339019965,1727130685363,-500.0,0.00034109,30]
[339019966,1727130685372,-500.0,0.00034109,30]
[339019967,1727130685381,-536.2,0.00034109,30]
[339019968,1727130685390,-500.0,0.00034109,30]
[339019969,1727130685400,-1484.78,0.00034109,30]
[339019970,1727130685409,-500.0,0.00034109,30]
[339019971,1727130685419,-4278.99,0.00034109,21]
[339019972,1727130685428,-500.0,0.00034109,30]
[339019973,1727130685437,-500.0,0.00034109,30]
[339019974,1727130685447,-500.0,0.00034109,30]
[339019975,1727130685456,-500.0,0.00034109,30]
[339019976,1727130685466,-500.0,0.00034109,30]
[339019977,1727130685475,-500.0,0.00034109,30]
[339019978,1727130685486,-729.6,0.00034109,30]
[339019979,1727130685495,-500.0,0.00034109,30]
[339019980,1727130685504,-500.0,0.00034109,30]
[339019981,1727130685514,-500.0,0.00034109,30]
[339019982,1727130685523,-527.26,0.00034109,30]
[339019983,1727130685541,-1276.76,0.00034109,30]
[339019984,1727130685551,-500.0,0.00034109,30]
[339019985,1727130685560,-1463.58,0.00034109,30]
[339019986,1727130685569,-500.0,0.00034109,30]
[339019987,1727130685578,-500.0,0.00034109,30]
[339019988,1727130685588,-1844.92,0.00034109,30]
[339019989,1727130685597,-612.36,0.00034109,30]
[339019990,1727130685606,-500.0,0.00034109,30]
[339019991,1727130685615,-500.0,0.00034109,30]
[339019992,1727130685624,-500.0,0.00034109,7]
[339019993,1727130685634,-500.0,0.00034109,30]
[339019994,1727130685643,-500.0,0.00034109,30]
[339019995,1727130685652,-500.0,0.00034109,30]
[339019996,1727130685661,-431.80307787,0.00034109,30]
[339019997,1727130685670,-500.0,0.00034109,30]
[339019998,1727130685679,-550.71491705,0.00034109,30]
[339019999,1727130685689,-500.0,0.00034109,30]
[339020000,1727130685698,-1266.01,0.00034109,30]
[339020001,1727130685708,-500.0,0.00034109,30]
[339020002,1727130685717,-500.0,0.00034109,30]
[339020003,1727130685726,-1200.54,0.00034109,30]
[339020004,1727130685735,-500.0,0.00034109,30]
[339020005,1727130685745,-501.9,0.00034109,30]
[339020006,1727130685754,-500.0,0.00034109,30]
[339020007,1727130685762,-512.67036244,0.00034109,30]
[339020008,1727130685772,-1081.62,0.00034109,30]
[339020009,1727130685785,-500.0,0.00034109,30]
[339020010,1727130685794,-500.0,0.00034109,30]
[339020011,1727130685803,-500.0,0.00034109,30]
[339020012,1727130685812,-500.0,0.00034109,30]
[339020013,1727130685822,-1820.79,0.00034109,7]
[339020014,1727130685834,-694.3,0.00034109,30]
[339020015,1727130685843,-500.0,0.00034109,30]
[339020016,1727130685852,-1532.58,0.00034109,30]
[339020017,1727130685862,-1035.06,0.00034109,30]
[339020018,1727130685872,-40342.48,0.00034109,18]
[339020019,1727130685881,-500.0,0.00034109,30]
[339020020,1727130685890,-736.16,0.00034109,30]
[339020021,1727130685900,-250.0,0.00034121,5]
[339020022,1727130685910,-194.95271321,0.00034131,5]
[339020023,1727130685919,-372.69371914,0.00034131,5]
[339020024,1727130685928,-1500.0,0.00034131,5]
[339020025,1727130685938,-504.88523367,0.00034131,5]
[339020026,1727130685947,-719.75,0.00034246,30]
[339020027,1727130685956,-969.66,0.00034246,30]
[339020028,1727130685965,-711.06,0.00034246,30]
[339020029,1727130685974,-514.47,0.00034246,30]
[339020030,1727130685984,-513.89,0.00034246,30]
[339020031,1727130685994,-500.0,0.00034246,2]
[339020032,1727130686003,-584.13,0.00034246,30]
[339020033,1727130686012,-984.17,0.00034246,30]
[339020034,1727130686021,-683.52,0.00034246,30]
[339020035,1727130686031,-500.0,0.00034246,30]
[339020036,1727130686041,-610.08,0.00034246,30]
[339020037,1727130686050,-1045.6,0.00034246,7]
[339020038,1727130686059,-859.64,0.00034246,30]
[339020039,1727130686069,-1071.88,0.00034246,30]
[339020040,1727130686078,-607.11,0.00034246,30]
[339020041,1727130686087,-500.0,0.00034246,30]
[339020042,1727130686097,-500.0,0.00034246,30]
[339020043,1727130686106,-500.0,0.00034246,30]
[339020044,1727130686115,-500.0,0.00034246,30]
[339020045,1727130686125,-678.42,0.00034246,30]
[339020046,1727130686134,-520.8,0.00034246,30]
[339020047,1727130686143,-500.0,0.00034246,30]
[339020048,1727130686152,-581.01,0.00034246,30]
[339020049,1727130686162,-624.97,0.00034246,30]
[339020050,1727130686171,-500.0,0.00034246,30]
[339020051,1727130686181,-746.07,0.00034246,30]
[339020052,1727130686191,-606.75,0.00034246,30]
[339020053,1727130686200,-500.0,0.00034246,30]
[339020054,1727130686209,-500.0,0.00034246,30]
[339020055,1727130686218,-500.0,0.00034246,30]
[339020056,1727130686227,-500.0,0.00034246,30]
[339020057,1727130686236,-500.0,0.00034246,30]
[339020058,1727130686246,-572.02,0.00034246,30]
[339020059,1727130686256,-500.0,0.00034246,30]
[339020060,1727130686265,-527.38,0.00034246,30]
[339020061,1727130686275,-500.0,0.00034246,30]
[339020062,1727130686285,-500.0,0.00034246,30]
[339020063,1727130686295,-2283.61,0.00034246,30]
[339020064,1727130686304,-500.0,0.00034246,30]
[339020065,1727130686314,-596.77045066,0.00034246,30]
[339020066,1727130686407,-729.07,0.00034246,25]
[339020067,1727130686417,-500.0,0.00034246,30]
[339020068,1727130686426,-500.0,0.00034246,30]
[339020069,1727130686436,-500.0,0.00034246,30]
[339020070,1727130686446,-500.0,0.00034246,30]
[339020071,1727130686455,-488.78929277,0.00034246,30]
[339020072,1727130686464,-500.0,0.00034246,30]
[339020073,1727130686474,-500.0,0.00034246,30]
[339020074,1727130686483,-500.0,0.00034246,30]
[339020075,1727130686492,-500.0,0.00034246,30]
[339020076,1727130686502,-503.54545512,0.00034246,30]
[339020077,1727130686511,-299.53432801,0.00034246,30]
[339020078,1727130686520,-500.0,0.00034246,30]
[339020079,1727130686530,-639.96,0.00034246,30]
[339020080,1727130686540,-3024.97,0.00034246,30]
[339020081,1727130686549,-500.0,0.00034246,30]
[339020082,1727130686558,-1122.08,0.00034246,30]
[339020083,1727130686567,-500.0,0.00034246,30]
[339020084,1727130686576,-500.0,0.00034246,30]
[339020085,1727130686585,-500.0,0.00034246,30]
[339020086,1727130686594,-500.0,0.00034246,2]
[339020087,1727130686603,-655.57,0.00034246,30]
[339020088,1727130686614,-486.97311706,0.00034246,30]
[339020089,1727130686623,-500.0,0.00034246,30]
[339020090,1727130686632,-500.0,0.00034246,30]
[339020091,1727130686642,-500.0,0.00034246,30]
[339020092,1727130686651,-500.0,0.00034246,30]
[339020093,1727130686660,-532.96,0.00034246,30]
[339020094,1727130686670,-500.0,0.00034246,30]
[339020095,1727130686680,-500.0,0.00034246,30]
[339020096,1727130686689,-500.0,0.00034246,30]
[339020097,1727130686698,-625.74,0.00034246,30]
[339020098,1727130686708,-500.0,0.00034246,30]
[339020099,1727130686717,-500.0,0.00034246,30]
[339020100,1727130686727,-783.45,0.00034246,30]
[339020101,1727130686736,-324.52937306,0.00034246,30]
[339020102,1727130686745,-1230.74,0.00034246,30]